Cogmind - Beta 13 @@@ ROGUE MODE // 2024.05.04 @ 18:11:01 Player: luckinvolved Result: Destroyed by G-34 Mercenary with Small Laser Performance ------------- Evolutions (1) 500 Regions Visited (4) 800 Robots Destroyed (38) 190 Value Destroyed (1367) 1367 Prototype IDs (2) 40 Alien Tech Used (0) 0 Bonus (300) 300 TOTAL SCORE: 3197 Bonus ------- Aligned with FarCom 300 Cogmind --------- Core Integrity 0/400 Matter 168/300 Energy 87/100 System Corruption 6% Temperature Danger (488) Movement Core (50) Location -9/Exiles Parts ------- > --- POWER (1) -------- (None) > --- PROPULSION (2) --- (None) > --- UTILITY (4) ------ (None) > --- WEAPON (2) ------- (None) > --- INVENTORY (5) ---- (None) Peak State ------------ > --- POWER ------------ Ion Engine > --- PROPULSION ------- Light Treads Improved Treads > --- UTILITY ---------- Improved Heat Sink Huge Storage Unit Superbattery Utility Shielding > --- WEAPON ----------- Beam Rifle Guided Plasma Cannon > --- INVENTORY -------- Ion Engine Improved Ion Engine Light Angular Momentum Engine Improved Treads Improved Treads Compact Wheel Heat Sink Heat Sink Medium Matter Pod Shield Generator Shield Generator Army-in-a-Box Beam Rifle Beam Rifle Beam Rifle Autogun Shotgun Grenade Launcher Mining Laser [Rating: 37] Favorites ----------- Power Ion Engine Engine Ion Engine Propulsion Light Treads Treads Light Treads Utility Huge Storage Unit Device Shield Generator Storage Huge Storage Unit Protection Utility Shielding Weapon Beam Rifle Energy Gun Beam Rifle Energy Cannon Guided Plasma Cannon Ballistic Gun Light Assault Rifle Launcher Grenade Launcher Build | -11 -10 -9 -9 -9 ------- Run | Yrd Mat Mat Min Exi Slots Evolved 2 | . . 2 . . Power . | . . . . . Propulsion . | . . . . . Utility 2 | . . 2 . . Weapon . | . . . . . Parts Attached 27 | 6 6 4 2 9 Power 3 | 1 . . 1 1 Engine 3 | 1 . . 1 1 Core . | . . . . . Reactor . | . . . . . Propulsion 5 | 2 . . 1 2 Treads 5 | 2 . . 1 2 Leg . | . . . . . Wheel . | . . . . . Hover . | . . . . . Flight . | . . . . . Utility 9 | 1 2 3 . 3 Device 5 | . 1 2 . 2 Storage 3 | 1 1 . . 1 Processor . | . . . . . Hackware . | . . . . . Protection 1 | . . 1 . . Artifact . | . . . . . Weapon 10 | 2 4 1 . 3 Energy Gun 5 | 1 3 1 . . Energy Cannon 1 | . . . . 1 Ballistic Gun 3 | 1 1 . . 1 Ballistic Cannon . | . . . . . Launcher 1 | . . . . 1 Special Weapon . | . . . . . Impact Weapon . | . . . . . Slashing Weapon . | . . . . . Piercing Weapon . | . . . . . Special Melee Weapon . | . . . . . Unidentified Prototypes 2 | . . . . 2 Parts Lost 9 | . . . 2 7 Power 2 | . . . 1 1 Propulsion 4 | . . . 1 3 Utility 1 | . . . . 1 Weapon 2 | . . . . 2 Highest Loss Streak 4 | . . . 1 4 To Critical Strikes . | . . . . . Average Slot Usage (%) 95 | . 89 98 100 98 Engine 11 | . 14 11 11 10 Treads 23 | . 28 22 22 21 Device 16 | . 7 26 22 15 Storage 13 | . 14 11 11 17 Protection 5 | . . 4 11 10 Energy Gun 17 | . 12 22 22 14 Energy Cannon 1 | . . . . 6 Ballistic Gun 4 | . 12 . . . Naked Turns 4 | . . . . 4 Heaviest Build 105 | 12 90 95 95 105 Greatest Support 43 | 40 40 40 40 43 Greatest Overweight (x) 2 | . 2 2 2 2 Average Overweight (x) 1 | . 1 2 2 1 Largest Inventory Capacity 25 | 8 25 25 25 25 Average Capacity 23 | 6 22 25 25 24 Most Carried 25 | 2 24 25 25 25 Average Carried 20 | 1 12 24 24 24 Final Capacity 25 | 8 25 25 25 5 Final Carried 25 | 2 24 24 25 . Class Distribution -------------------- 100% | Mutant Dominant Class ---------------- Mutant | -10/Materials Mutant | -9/Materials Mutant | -9/Mines Mutant | -9/Exiles Resources | -11 -10 -9 -9 -9 ----------- Run | Yrd Mat Mat Min Exi Matter Collected 564 | 248 202 40 20 54 Remotely . | . . . . . Salvage Created 1420 | . 187 567 196 470 Parts 64 | . 11 31 5 17 Haulers Intercepted . | . . . . . Recyclers Shooed 2 | . . . 2 . Parts Field Recycled . | . . . . . Retrieved Matter . | . . . . . Parts Self-Destructed . | . . . . . Prevented . | . . . . . Kills | -11 -10 -9 -9 -9 ------- Run | Yrd Mat Mat Min Exi Combat Hostiles Destroyed 36 | . 7 12 6 11 Guns 25 | . 7 12 6 . Cannons 10 | . . . . 10 AOE 1 | . . . . 1 Classes Destroyed 8 | . 2 3 . 3 Worker 1 | . . 1 . . Watcher 1 | . . 1 . . Swarmer 5 | . 3 . 2 . Grunt 20 | . 4 9 4 3 Brawler 1 | . . . . 1 Sentry 3 | . . 3 . . Hunter 4 | . . . . 4 Programmer 3 | . . . . 3 Best Kill Streak 9 | . 2 3 2 9 Combat Bots Only 9 | . 2 3 2 9 Max Kills in Single Turn 1 | . 1 1 1 1 Gunslinging . | . . . . . Exploded 1 | . . . . 1 Melee . | . . . . . Uniques/NPCs Destroyed . | . . . . . Combat | -11 -10 -9 -9 -9 -------- Run | Yrd Mat Mat Min Exi Hostile Shots Fired 207 | . 27 31 36 113 Missed 47 | . 8 8 9 22 Damage Taken 1802 | . 163 202 246 1191 Core 435 | . 29 42 9 355 Absorbed by Shields 209 | . 36 78 74 21 Redirected to Shielding 44 | . . . 9 35 Core Remaining (%) 94 | 100 88 . . . Volleys Fired 114 | . 17 28 24 45 Largest 2 | . 2 2 2 1 Hottest 130 | . 130 112 112 120 Shots Fired 184 | . 34 56 48 46 Gun 150 | . 34 56 48 12 Cannon 32 | . . . . 32 Launcher 2 | . . . . 2 Special . | . . . . . Kinetic 26 | . 14 . . 12 Thermal 156 | . 20 56 48 32 Explosive 2 | . . . . 2 Electromagnetic . | . . . . . Robot Hit Streak 15 | . 6 11 10 15 Robot Miss Streak 3 | . 2 3 3 1 Penetration Max . | . . . . . Secondary Targets 2 | . 1 . 1 . Max Gunslinging Chain 1 | . 1 . 1 . Shots Hit Robots 133 | . 26 39 31 37 Core Hits 57 | . 13 19 11 14 Critical Kills . | . . . . . Critical Parts Destroyed . | . . . . . Critical Strikes 7 | . . 5 2 . Burn 7 | . . 5 2 . Melee Attacks . | . . . . . Impact . | . . . . . Slashing . | . . . . . Piercing . | . . . . . Sneak Attacks . | . . . . . Combat Hostiles . | . . . . . Follow-up Attacks . | . . . . . Damage Inflicted 2833 | . 277 596 470 1490 Guns 1473 | . 277 596 470 130 Cannons 1244 | . . . . 1244 Explosions 116 | . . . . 116 Melee . | . . . . . Ramming . | . . . . . Kinetic 223 | . 93 . . 130 Thermal 2494 | . 184 596 470 1244 Explosive 116 | . . . . 116 Electromagnetic . | . . . . . Impact . | . . . . . Slashing . | . . . . . Piercing . | . . . . . Highest Corruption 6 | . 1 . . 6 Average Corruption 1 | . 1 . . 2 Corruption Purged . | . . . . . Corruption Blocked . | . . . . . Effects 4 | . 3 . . 1 Matter Fused 2 | . 2 . . . Energy Discharges 1 | . 1 . . . Misfires 1 | . . . . 1 Overload Shots . | . . . . . Overflow Damage 15 | . . . . 15 Projectiles 15 | . . . . 15 Explosions . | . . . . . Melee . | . . . . . Knockbacks . | . . . . . Impact . | . . . . . Kinetic . | . . . . . Secondary . | . . . . . Self-Inflicted Damage . | . . . . . Shots . | . . . . . Rammed . | . . . . . Targets Rammed . | . . . . . Kicked . | . . . . . Crushed . | . . . . . Highest Temperature 558 | . 279 84 36 558 Average Temperature 138 | . 83 32 17 229 Received Heat Transfer 508 | . 72 92 92 252 Effects 13 | . 1 . . 12 Shutdowns 2 | . . . . 2 Energy Bleed 3 | . . . . 3 Interference 5 | . 1 . . 4 Matter Decay 2 | . . . . 2 Short Circuit 1 | . . . . 1 Siege Activations . | . . . . . Robots Corrupted . | . . . . . Combat Hostiles . | . . . . . Parts Fried . | . . . . . Impact Corruptions . | . . . . . Robots Melted . | . . . . . Combat Hostiles . | . . . . . Parts Melted 21 | . . 7 3 11 Heat Transferred 6152 | . 410 1850 1332 2560 Parts Sabotaged . | . . . . . Parts Stolen . | . . . . . Parts Stripped . | . . . . . Power Chain Reactions . | . . . . . Alert | -11 -10 -9 -9 -9 ------- Run | Yrd Mat Mat Min Exi Peak Influence 310 | . 152 310 132 . Initial 21 | . . 16 21 . Average 75 | . 39 115 89 . Maximum Alert Level 1 | . . 1 . . Low Security (%) 95 | 100 100 87 100 . Level 1 4 | . . 12 . . Level 2 . | . . . . . Level 3 . | . . . . . Level 4 . | . . . . . Level 5 . | . . . . . High Security . | . . . . . Max Security . | . . . . . Squads Dispatched 3 | . 1 2 . . Investigation 1 | . 1 . . . Extermination . | . . . . . Reinforcement 2 | . . 2 . . Assault . | . . . . . Garrison . | . . . . . Intercept . | . . . . . Searches Triggered . | . . . . . Construction Impeded . | . . . . . Haulers Reinforced . | . . . . . Active Scanning Responses . | . . . . . Cargo Convoy Interrupts . | . . . . . Stealth | -11 -10 -9 -9 -9 --------- Run | Yrd Mat Mat Min Exi Distress Signals 1 | . 1 . . . Communications Jammed . | . . . . . Distress Signals . | . . . . . Times Spotted 59 | . 9 16 9 25 Peak Tracking Total 12 | . 2 4 3 12 Tactical Retreats 2 | . 1 . 1 . Traps | -11 -10 -9 -9 -9 ------- Run | Yrd Mat Mat Min Exi Traps Triggered . | . . . . . Indirectly . | . . . . . Trap Hack Attempts . | . . . . . Triggered . | . . . . . Disarmed . | . . . . . Reprogrammed . | . . . . . Reused . | . . . . . Traps Extracted . | . . . . . Installed . | . . . . . Triggered . | . . . . . Machines | -11 -10 -9 -9 -9 ---------- Run | Yrd Mat Mat Min Exi Machines Disabled 2 | . . 1 . 1 Max in Single Turn 1 | . . 1 . 1 Machines Repaired . | . . . . . Machines Dismantled . | . . . . . Machines Sabotaged . | . . . . . Overloaded Fab Kills . | . . . . . Hacking | -11 -10 -9 -9 -9 --------- Run | Yrd Mat Mat Min Exi Machines Accessed 6 | . 5 1 . . Terminals 6 | . 5 1 . . Fabricators . | . . . . . Repair Stations . | . . . . . Recycling Units . | . . . . . Scanalyzers . | . . . . . Garrison Access . | . . . . . Total Hacks 12 | . 11 1 . . Successful 5 | . 5 . . . Failed 7 | . 6 1 . . Catastrophic 2 | . 1 1 . . Database Lockouts . | . . . . . Manual 14 | . 12 1 . 1 Terminals 12 | . 11 1 . . Fabricators . | . . . . . Repair Stations . | . . . . . Recycling Units . | . . . . . Scanalyzers . | . . . . . Garrison Access . | . . . . . Terminal Hacks 1 | . 1 . . . Robot Analysis 1 | . 1 . . . Fabricator Hacks . | . . . . . Repair Station Hacks . | . . . . . Recycling Unit Hacks . | . . . . . Scanalyzer . | . . . . . Garrison Access Hacks . | . . . . . Unauthorized Hacks 4 | . 4 . . . Terminals 4 | . 4 . . . Botnet 4 | . 4 . . . Fabricators . | . . . . . Repair Stations . | . . . . . Recycling Units . | . . . . . Scanalyzers . | . . . . . Garrison Access . | . . . . . Data Cores Recovered . | . . . . . Used . | . . . . . Hacking Detections 4 | . 3 1 . . Full Trace Events 1 | . 1 . . . Feedback Events 1 | . 1 . . . Corruption 1 | . 1 . . . Feedback Blocked . | . . . . . Robot Schematics Acquired . | . . . . . Robots Built . | . . . . . Authchips . | . . . . . Time . | . . . . . Total Robot Build Rating . | . . . . . Part Schematics Acquired . | . . . . . Parts Built . | . . . . . Authchips . | . . . . . Time . | . . . . . Total Part Build Rating . | . . . . . Parts Repaired . | . . . . . Time . | . . . . . Parts Recycled . | . . . . . Recycled Matter . | . . . . . Retrieved Matter . | . . . . . Retrieved Components . | . . . . . Parts Scanalyzed . | . . . . . Part Schematics Acquired . | . . . . . Parts Damaged . | . . . . . Bothacking | -11 -10 -9 -9 -9 ------------ Run | Yrd Mat Mat Min Exi Used RIF Installer . | . . . . . Robots Hacked . | . . . . . Non-combat . | . . . . . Combat . | . . . . . Robot Hacks Applied . | . . . . . Relay Couplers Released . | . . . . . Fabnet Peak Effective % . | . . . . . Robots Rewired . | . . . . . Allies Hacked . | . . . . . Hacks Repelled . | . . . . . Allies | -11 -10 -9 -9 -9 -------- Run | Yrd Mat Mat Min Exi Total Allies 1 | . . . 1 . Largest Group 1 | . . . 1 . Highest-Rated Group 31 | . . . 31 . Highest-Rated Ally 31 | . . . 31 . Total Orders . | . . . . . Ally Attacks 2 | . . . 2 . Total Damage 21 | . . . 21 . Kills 1 | . . . 1 . Allies Corrupted . | . . . . . Allies Melted . | . . . . . Intel | -11 -10 -9 -9 -9 ------- Run | Yrd Mat Mat Min Exi Robot Analysis Total 1 | . 1 . . . Derelict Logs Recovered . | . . . . . Drone Launches . | . . . . . Drone Recoveries . | . . . . . Exploration | -11 -10 -9 -9 -9 ------------- Run | Yrd Mat Mat Min Exi Turns Passed 3569 | 81 1119 1007 473 889 Spaces Moved 1054 | 45 377 263 118 251 Core 9 | 1 . . . 8 Treads 1045 | 44 377 263 118 243 Legs . | . . . . . Wheels . | . . . . . Hover . | . . . . . Flight . | . . . . . Fastest Speed 50 | 50 160 320 320 50 Average Speed 293 | 157 272 320 320 311 Slowest Speed 320 | 160 320 320 320 320 Overloaded Moves . | . . . . . Propulsion Burnouts . | . . . . . Robots Hopped . | . . . . . Cave-ins Triggered . | . . . . . Exploration Rate (%) 28 | 4 55 22 21 41 Regions Visited 4 Branch Regions 2 Pre-discovered Areas . | . . . . . Known Exits Taken . | . . . . . Unknown Exits Taken 4 | 1 1 1 1 . Scrap Searched . | . . . . . Spaces Dug . | . . . . . Terrain Destroyed 8 | . . . . 8 Melee . | . . . . . Projectile . | . . . . . AOE 8 | . . . . 8 Terrain Rammed . | . . . . . Walls Destroyed . | . . . . . Machines Disabled . | . . . . . Actions | -11 -10 -9 -9 -9 --------- Run | Yrd Mat Mat Min Exi Total 1358 | 52 442 377 168 319 Wait 94 | . 6 68 20 . Move 1050 | 44 376 262 117 251 Hop . | . . . . . Pick Up 45 | 2 28 8 4 3 Fast Attach 13 | 6 3 2 . 2 Attach 9 | . . 2 2 5 Detach . | . . . . . Swap 5 | . 3 . . 2 Drop 28 | . 9 7 1 11 Fire 114 | . 17 28 24 45 Melee . | . . . . . Ram . | . . . . . Kick . | . . . . . Crush . | . . . . . Escape Stasis . | . . . . . Rewire . | . . . . . Trap . | . . . . . Miscellaneous . | . . . . . Route ------- -11/Scrapyard -10/Materials (discovered 3 exits: *Mat x2 / [*Min]) -9/Materials -9/Mines (discovered 2 exits: [*Mat] / *Exi) -9/Exiles History --------- Turn | Location | Event 23 | -11/Scrapyard | Discovered new exit (range 15) 82 | -11/Scrapyard | Entered Materials 223 | -10/Materials | Discovered new exit (range 7) 302 | -10/Materials | Build established: Mutant 521 | -10/Materials | Discovered new exit (range 16) 582 | -10/Materials | Derelicts attacked the area 808 | -10/Materials | Discovered new exit (range 14) 1201 | -10/Materials | Entered another Materials area 1201 | -9/Materials | Evolved 2 slots: Utility x2 2048 | -9/Materials | Discovered new exit (range 6) 2208 | -9/Materials | Entered Mines 2237 | -9/Mines | Discovered new exit (range 14) 2397 | -9/Mines | Received a Mining Laser from a helpful Derelict 2665 | -9/Mines | Deemed a non-threat by the Exiles lab entrance 2665 | -9/Mines | Discovered new exit (range 5) 2681 | -9/Mines | Entered Exiles 2758 | -9/Exiles | Met 8R-AWN 2816 | -9/Exiles | Met EX-HEX 2905 | -9/Exiles | Met EX-BIN 2941 | -9/Exiles | Aligned with FarCom system 2944 | -9/Exiles | Given EX-Vault access code 3017 | -9/Exiles | Opened EX-Vault 3037 | -9/Exiles | Found Prototype Storage 3037 | -9/Exiles | Identified Superbattery 3065 | -9/Exiles | Found Prototype Energy Cannon 3065 | -9/Exiles | Identified Gui. Plasma Cannon 3153 | -9/Exiles | Exiles lab attacked by MAIN.C 3239 | -9/Exiles | Found Prototype Device 3537 | -9/Exiles | Destroyed 9 combat bots 3554 | -9/Exiles | Core integrity fell below 50% 3566 | -9/Exiles | Released all parts (6) 3570 | -9/Exiles | Core integrity fell below 20% 3570 | -9/Exiles | Destroyed by G-34 Mercenary with Small Laser Last Messages --------------- 03563_ P-60 Hacker heat spikes uncontrollably. 03563_ Autogun destroyed. 03564_ Melted Mic. Nuclear Core. 03564_ Lgt. Treads destroyed. 03565_ Overheating: Energy bleed (-183). 03565_ P-60 Hacker heat damages Imp. Heat Sink. 03566_ Gui. Plasma Cannon broken. 03566_ Overheating: Short circuit. 03566_ Dropped Broken Gui. Plasma Cannon. 03566_ Released Huge Storage Unit. 03566_ Released Utility Shielding. 03566_ Released Superbattery. 03566_ Released Ion Engine. 03566_ Released Imp. Treads. 03566_ Released Heat Sink. 03567_ Overheating: Matter decay (-24). 03568_ P-60 Hacker heat damages core (-7). 03569_ Overheating: Energy bleed (-15). 03569_ Acquired 54 matter. 03570_ P-60 Hacker heat damages Imp. Heat Sink. Map ----- +----------------------------------------------------+ | ??????????????????######### #??"""""?????????? | | ??????????????????#""""""## #???###??????????? | | ??????????????????#"""" ## #????????????????? | | ??????????????????#""X" #????????????????? | | ??????????????????#" #????????????????? | | ??????????????????#" ## #????????????????? | | ??????????????????#""""""## #?#########??????? | | ??????????????????##"###### #?#"""""""#??????? | | ?????????????????? "?????# #?#"""""""#??????? | | ?????????????????""" ?????# #?# "" """#??????? | | ????????????????#""" ????## ### """"#??????? | | ??????????????????""?????#" """"#??????? | | ???????????????????#?????#" """#??????? | | ?????????????????????????#" """#??????? | | ?????????????????????????#" """#??????? | | ?????????????????????????#" =!= """#??????? | | ?????????????????????????#" !!**[ """#??????? | | ?????????????????????????## =[]![ """""?????? | | ?????????????????????????## *!|[! """#??????? | | ?????????????????????????# ![!! "X" """"??????? | | ????????????????????????### """ #??????? | | ????????????????????????# """""""""#??????? | | ????????????????????????###* =###########??????? | | ????????????????????????##[%/*%=#????????????????? | | ???????????????????######" [%=![#????????????????? | | ???????????????????#"""""@[%pp%g##???????????????? | | ???????????????????""" " =! = ##???###########? | | ???????????????????""" "*%g #####"""""""""## | | ??????????????????? " g " """ """"# | | ????????????????? "" " | | ????????????????? g % " """ | | ???????????????? = % g " " | | ??????????????? =%! " " | | ?????????????? [!%%! g " | | ????????????? %%! [ """""" gblh | | ?????????????? %[g%%[######""" | | ?????????????? = ""#?????#####""" | | ???????????????? h"""#??????????##""" | | ?????????????????????????????????#"""" | | ?????????????????????????????????#"" | | ??????????????????????????????????""" | | ?????????????????????????????????? | | ?????????????????????????????????? | | ????????????????????????????????? | | ????????????????????????????????? | | ?????????????????????????????????? " | | ???????????????????????????????????? """ | | ??????????????????????????????????????" ""#" | | ???????????????????????????????????????????##""""" | | ????????????????????????????????????????????###### | +----------------------------------------------------+ Best States ------------- Heat Dissipation 52 Energy Generation 10 Energy Capacity 1750 Matter Stores 300 Matter Capacity 300 Sight Range 16 Terrain Scan Density 10 Utility Shielding 33 Evasion (%) 40 Recoil Reduction 2 Item Schematics ----------------- None Robot Schematics ------------------ None Fabricated ------------ Nothing Alien Tech Used ----------------- None Achievements -------------- None Challenges ------------ None Game ------ Seed RecyclingEnergyExtractor Manual? 0 Play Time 00:17:45 Cumulative 77.6 hours Start 2024.05.04 @ 17:51:31 End 2024.05.04 @ 18:11:01 Sessions 1 Manual Loads 0 Difficulty Rogue Special Mode None Game No. 112 Rogue 107 Adventurer 5 Explorer 0 Win Type - Total 2 Types 1/0/0/1/0/0/0/0/0 Lore% 40 Gallery% 60 Achievement% 48 Wizard Run 0 Options --------- Layout 0 ASCII 0 Keyboard 0 Movement Mouse Keybinds 0 Fullscreen 1 Font 24/Smallcaps Map View 76x50 Zoom Use 52% Tactical HUD 1 Map Filters NONE Filters NONE Steam 1 RUN: 20e5830d-6eaf-4762-8c12-19e12904fd38